[Event "Bamberg-Open 2019"]
[Site "Bamberg"]
[Date "2019.05.30"]
[Round "3.26"]
[White "Schreiter, Thomas"]
[Black "Ziegenfuss, Antonia"]
[Result "1/2-1/2"]
[ECO "D37"]
[WhiteElo "1982"]
[BlackElo "2111"]
[Annotator "ChessBase"]
[PlyCount "77"]
[EventDate "2019.05.12"]
[EventType "swiss"]
[EventCountry "GER"]
[SourceTitle "playchess.com"]
[Source "ChessBase"]
[SourceQuality "1"]
[TimeControl "40/5400+30:900+30"]

1. d4 {[%emt 0:00:00]} Nf6 {[%emt 0:00:00]} 2. c4 {[%emt 0:00:00]} e6 {[%emt 0:00:00]} 3. Nf3 {[%emt 0:00:17]} d5 {[%emt 0:00:00]} 4. Nc3 {[%emt 0:00:45]} dxc4 {[%emt 0:00:02]} 5. e3 {[%emt 0:01:09]} a6 {[%emt 0:00:51]} 6. Bxc4 {[%emt 0:01:02]} b5 {[%emt 0:02:29]} 7. Bd3 {[%emt 0:00:53]} c5 {[%emt 0:02:01]} 8. O-O {[%emt 0:00:58]} Bb7 {[%emt 0:03:27]} 9. b3 {[%emt 0:05:44]} Be7 {[%emt 0:03:36]} 10. Bb2 {[%emt 0:02:03]} O-O {[%emt 0:01:50]} 11. Rc1 {[%emt 0:03:48]} Nbd7 {[%emt 0:05:31]} 12. Qe2 {[%emt 0:02:41]} Qb6 {[%emt 0:10:57]} 13. Rfd1 {[%emt 0:04:20]} Rad8 {[%emt 0:06:46]} 14. Bb1 {[%emt 0:06:25]} Rfe8 {[%emt 0:04:08]} 15. dxc5 {[%emt 0:12:09]} Bxc5 {[%emt 0:02:33]} 16. Nd4 {[%emt 0:02:50]} Ne5 {[%emt 0:11:14]} 17. Nc2 {[%emt 0:06:53]} Ng6 {[%emt 0:09:15]} 18. Ne1 {[%emt 0:06:34]} Nh4 {[%emt 0:07:28]} 19. Rxd8 {[%emt 0:05:26]} Rxd8 {[%emt 0:00:25]} 20. Nd1 {[%emt 0:00:09]} Ng6 {[%emt 0:05:46]} 21. h4 {[%emt 0:05:05]} Nxh4 {[%emt 0:10:10]} 22. Bxf6 {[%emt 0:00:55]} gxf6 {[%emt 0:00:09]} 23. Qh5 {[%emt 0:00:21]} Ng6 {[%emt 0:01:00]} 24. Rxc5 {[%emt 0:07:15]} Rxd1 {[%emt 0:00:20]} 25. Rc8+ {[%emt 0:02:35]} Bxc8 {[%emt 0:00:10]} 26. Qxd1 {[%emt 0:00:11]} Qc6 {[%emt 0:02:13]} 27. Nd3 {[%emt 0:04:15]} Bb7 {[%emt 0:01:30]} 28. f3 {[%emt 0:00:57]} Qd5 {[%emt 0:04:11]} 29. Qc2 {[%emt 0:00:51]} Qg5 {[%emt 0:01:35]} 30. Kf2 {[%emt 0:05:38]} Nh4 {[%emt 0:02:24]} 31. Nf4 {[%emt 0:00:28]} Nf5 {[%emt 0:01:45]} 32. Qc7 {[%emt 0:01:14]} e5 {[%emt 0:01:34]} 33. Qxb7 {[%emt 0:00:21]} exf4 {[%emt 0:00:38]} 34. Qc8+ {[%emt 0:00:17]} Kg7 {[%emt 0:00:04]} 35. Qxf5 {[%emt 0:00:14]} fxe3+ {[%emt 0:00:48]} 36. Ke2 {[%emt 0:03:22]} Qxg2+ {[%emt 0:00:06]} 37. Kxe3 {[%emt 0:00:08]} Qg1+ {[%emt 0:00:34]} 38. Kf4 {[%emt 0:01:44]} Qc1+ {[%emt 0:00:20]} 39. Kg4 {[%emt 0:02:30]} 1/2-1/2

[Event "Bamberg-Open 2019"]
[Site "Bamberg"]
[Date "2019.05.31"]
[Round "4.2"]
[White "Hacker, Jonas"]
[Black "Langheinrich, Ferenc"]
[Result "1-0"]
[ECO "B01"]
[WhiteElo "2386"]
[BlackElo "2379"]
[Annotator "ChessBase"]
[PlyCount "82"]
[EventDate "2019.05.12"]
[EventType "swiss"]
[EventCountry "GER"]
[SourceTitle "playchess.com"]
[Source "ChessBase"]
[SourceQuality "1"]
[TimeControl "40/5400+30:900+30"]

1. e4 {[%emt 0:00:00]} d5 {[%emt 0:00:00]} 2. exd5 {[%emt 0:00:00]} Qxd5 {[%emt 0:00:00]} 3. Nc3 {[%emt 0:00:00]} Qa5 {[%emt 0:00:50]} 4. d4 {[%emt 0:00:27]} Nf6 {[%emt 0:00:18]} 5. Nf3 {[%emt 0:00:28]} Bg4 {[%emt 0:00:21]} 6. h3 {[%emt 0:01:46]} Bxf3 {[%emt 0:00:23]} 7. Qxf3 {[%emt 0:00:32]} c6 {[%emt 0:00:14]} 8. Bd2 {[%emt 0:06:25]} Qd8 {[%emt 0:01:17]} 9. O-O-O {[%emt 0:02:30]} e6 {[%emt 0:00:03]} 10. Ne4 {[%emt 0:02:26]} Nxe4 {[%emt 0:01:24]} 11. Qxe4 {[%emt 0:00:02]} Qd5 {[%emt 0:00:05]} 12. Qxd5 {[%emt 0:01:17]} cxd5 {[%emt 0:00:24]} 13. c4 {[%emt 0:12:16]} dxc4 {[%emt 0:00:33]} 14. Bxc4 {[%emt 0:05:37]} Nd7 {[%emt 0:00:06]} 15. Kb1 {[%emt 0:00:45]} Nb6 {[%emt 0:10:06]} 16. Bb3 {[%emt 0:09:35]} O-O-O {[%emt 0:10:54]} 17. Ba5 {[%emt 0:07:03]} Bd6 {[%emt 0:02:28]} 18. Bxb6 {[%emt 0:02:17]} axb6 {[%emt 0:00:08]} 19. f4 {[%emt 0:04:57]} Kb8 {[%emt 0:05:47]} 20. Rhf1 {[%emt 0:03:56]} Be7 {[%emt 0:03:06]} 21. d5 {[%emt 0:02:57]} exd5 {[%emt 0:00:50]} 22. Bxd5 {[%emt 0:01:34]} Rd7 {[%emt 0:04:26]} 23. Bb3 {[%emt 0:08:26]} Rhd8 {[%emt 0:00:39]} 24. Rxd7 {[%emt 0:00:21]} Rxd7 {[%emt 0:00:08]} 25. Rd1 {[%emt 0:00:03]} Rxd1+ {[%emt 0:04:54]} 26. Bxd1 {[%emt 0:00:01]} f5 {[%emt 0:14:47]} 27. Bc2 {[%emt 0:01:56]} g6 {[%emt 0:02:38]} 28. Bb3 {[%emt 0:07:06]} h6 {[%emt 0:04:11]} 29. Bf7 {[%emt 0:01:36]} g5 {[%emt 0:00:44]} 30. Be6 {[%emt 0:00:39]} gxf4 {[%emt 0:02:06]} 31. Bxf5 {[%emt 0:00:02]} h5 {[%emt 0:00:09]} 32. Kc2 {[%emt 0:00:12]} h4 {[%emt 0:01:48]} 33. Kd3 {[%emt 0:00:09]} Bc5 {[%emt 0:07:52]} 34. Ke4 {[%emt 0:00:05]} Bd6 {[%emt 0:04:27]} 35. Bd7 {[%emt 0:04:36]} Kc7 {[%emt 0:00:28]} 36. Bb5 {[%emt 0:00:06]} Kb8 {[%emt 0:00:42]} 37. Kf5 {[%emt 0:00:38]} Kc7 {[%emt 0:00:16]} 38. Ba4 {[%emt 0:01:23]} Kb8 {[%emt 0:00:25]} 39. Kg4 {[%emt 0:00:59]} Be7 {[%emt 0:00:04]} 40. b4 {[%emt 0:00:52]} Kc7 {[%emt 0:01:47]} 41. b5 {[%emt 0:15:23]} Bf8 1-0

[Event "Bamberg-Open 2019"]
[Site "Bamberg"]
[Date "2019.05.31"]
[Round "4.3"]
[White "Delitzsch, Juergen"]
[Black "Stets, Dmitry"]
[Result "0-1"]
[ECO "E84"]
[WhiteElo "2175"]
[BlackElo "2391"]
[Annotator "ChessBase"]
[PlyCount "100"]
[EventDate "2019.05.12"]
[EventType "swiss"]
[EventCountry "GER"]
[SourceTitle "playchess.com"]
[Source "ChessBase"]
[SourceQuality "1"]
[TimeControl "40/5400+30:900+30"]

1. d4 {[%emt 0:00:00]} Nf6 {[%emt 0:00:59]} 2. c4 {[%emt 0:00:00]} g6 {[%emt 0:00:06]} 3. Nc3 {[%emt 0:00:00]} Bg7 {[%emt 0:00:04]} 4. e4 {[%emt 0:00:00]} d6 {[%emt 0:00:06]} 5. f3 {[%emt 0:00:00]} O-O {[%emt 0:00:10]} 6. Be3 {[%emt 0:00:00]} Nc6 {[%emt 0:00:18]} 7. Nge2 {[%emt 0:00:05]} a6 {[%emt 0:00:23]} 8. Qd2 {[%emt 0:00:04]} Rb8 {[%emt 0:00:07]} 9. h4 {[%emt 0:00:18]} b5 {[%emt 0:00:44]} 10. cxb5 {[%emt 0:06:22]} axb5 {[%emt 0:00:21]} 11. h5 {[%emt 0:00:07]} e5 {[%emt 0:02:38]} 12. hxg6 {[%emt 0:04:43]} fxg6 {[%emt 0:00:20]} 13. d5 {[%emt 0:00:49]} Na5 {[%emt 0:00:24]} 14. b3 {[%emt 0:01:30]} b4 {[%emt 0:03:01]} 15. Nd1 {[%emt 0:00:17]} Ba6 {[%emt 0:19:30]} 16. Bh6 {[%emt 0:06:56]} Bxh6 {[%emt 0:10:02]} 17. Qxh6 {[%emt 0:03:05]} Ra8 {[%emt 0:01:18]} 18. Rc1 {[%emt 0:01:08]} Nb7 {[%emt 0:00:23]} 19. Rc2 {[%emt 0:01:31]} Nc5 {[%emt 0:03:36]} 20. Nf2 {[%emt 0:00:18]} Nd3+ {[%emt 0:04:45]} 21. Nxd3 {[%emt 0:00:14]} Bxd3 {[%emt 0:00:07]} 22. Rd2 {[%emt 0:00:31]} Bxe2 {[%emt 0:00:14]} 23. Bxe2 {[%emt 0:00:08]} Qe7 {[%emt 0:00:14]} 24. Rc2 {[%emt 0:05:27]} Nh5 {[%emt 0:04:37]} 25. Qc1 {[%emt 0:03:39]} Ra7 {[%emt 0:01:41]} 26. Kf2 {[%emt 0:04:16]} Nf6 {[%emt 0:07:06]} 27. Kg1 {[%emt 0:04:40]} Rfa8 {[%emt 0:02:00]} 28. Bb5 {[%emt 0:08:20]} Rxa2 {[%emt 0:06:44]} 29. Rxc7 {[%emt 0:09:15]} Qd8 {[%emt 0:00:50]} 30. Ba4 {[%emt 0:01:38]} Ra1 {[%emt 0:00:30]} 31. Qxa1 {[%emt 0:02:10]} Qxc7 {[%emt 0:00:07]} 32. Qe1 {[%emt 0:02:23]} Qc5+ {[%emt 0:03:56]} 33. Kh2 {[%emt 0:02:35]} Nh5 {[%emt 0:00:15]} 34. Qc1 {[%emt 0:02:10]} Qf2 {[%emt 0:04:12]} 35. Qe1 {[%emt 0:02:13]} Qb6 {[%emt 0:00:45]} 36. Qd2 {[%emt 0:01:44]} Ra5 {[%emt 0:01:49]} 37. Rc1 {[%emt 0:04:33]} Rc5 {[%emt 0:00:06]} 38. Bd7 {[%emt 0:09:52]} Nf4 {[%emt 0:01:55]} 39. Rxc5 {[%emt 0:06:18]} Qxc5 {[%emt 0:00:06]} 40. Qa2 {[%emt 0:02:30]} Kg7 {[%emt 0:00:39]} 41. Bh3 {[%emt 0:22:37]} Qe3 {[%emt 0:16:34]} 42. Qc2 {[%emt 0:00:00]} Ne2 {[%emt 0:00:00]} 43. Qd1 {[%emt 0:00:00]} Qf4+ {[%emt 0:00:00]} 44. Kh1 {[%emt 0:00:00]} Qc1 {[%emt 0:00:00]} 45. Qxc1 {[%emt 0:00:00]} Nxc1 {[%emt 0:00:00]} 46. Kg1 {[%emt 0:00:00]} Nxb3 {[%emt 0:00:00]} 47. Kf2 {[%emt 0:00:00]} Nd4 {[%emt 0:00:00]} 48. g3 {[%emt 0:00:00]} b3 {[%emt 0:00:00]} 49. Bf1 {[%emt 0:00:00]} b2 {[%emt 0:00:00]} 50. Bd3 {[%emt 0:00:00]} Nb5 {[%emt 0:00:00]} 0-1

[Event "Bamberg-Open 2019"]
[Site "Bamberg"]
[Date "2019.05.31"]
[Round "4.5"]
[White "Pacher, Milan"]
[Black "Zenker, Ulrich"]
[Result "1-0"]
[ECO "C92"]
[WhiteElo "2396"]
[BlackElo "2147"]
[Annotator "ChessBase"]
[PlyCount "59"]
[EventDate "2019.05.12"]
[EventType "swiss"]
[EventCountry "GER"]
[SourceTitle "playchess.com"]
[Source "ChessBase"]
[SourceQuality "1"]
[TimeControl "40/5400+30:900+30"]

1. e4 {[%emt 0:00:00]} e5 {[%emt 0:00:00]} 2. Nf3 {[%emt 0:00:00]} Nc6 {[%emt 0:00:00]} 3. Bb5 {[%emt 0:00:00]} a6 {[%emt 0:00:00]} 4. Ba4 {[%emt 0:00:16]} Nf6 {[%emt 0:00:00]} 5. O-O {[%emt 0:00:06]} Be7 {[%emt 0:00:20]} 6. Re1 {[%emt 0:00:04]} b5 {[%emt 0:00:05]} 7. Bb3 {[%emt 0:00:03]} d6 {[%emt 0:00:18]} 8. c3 {[%emt 0:00:04]} O-O {[%emt 0:00:09]} 9. h3 {[%emt 0:00:03]} Nd7 {[%emt 0:02:30]} 10. d4 {[%emt 0:00:26]} Bf6 {[%emt 0:00:09]} 11. d5 {[%emt 0:02:44]} Ne7 {[%emt 0:00:36]} 12. Nbd2 {[%emt 0:00:37]} Ng6 {[%emt 0:08:49]} 13. a4 {[%emt 0:01:02]} bxa4 {[%emt 0:02:35]} 14. Bxa4 {[%emt 0:00:15]} Nc5 {[%emt 0:00:40]} 15. Bc2 {[%emt 0:00:05]} Nf4 {[%emt 0:12:27]} 16. Nf1 {[%emt 0:01:47]} Kh8 {[%emt 0:05:42]} 17. Bxf4 {[%emt 0:03:49]} exf4 {[%emt 0:00:05]} 18. e5 {[%emt 0:00:04]} dxe5 {[%emt 0:20:56]} 19. Nxe5 {[%emt 0:07:42]} Kg8 {[%emt 0:00:47]} 20. Qd4 {[%emt 0:07:03]} Qd6 {[%emt 0:08:19]} 21. Nd2 {[%emt 0:01:43]} Bb7 {[%emt 0:03:22]} 22. b4 {[%emt 0:04:51]} Nd7 {[%emt 0:00:46]} 23. Ndc4 {[%emt 0:06:42]} Bxe5 {[%emt 0:07:19]} 24. Rxe5 {[%emt 0:00:41]} Qh6 {[%emt 0:05:28]} 25. Re7 {[%emt 0:03:59]} Nf6 {[%emt 0:00:20]} 26. Nb6 {[%emt 0:02:53]} Rad8 {[%emt 0:13:21]} 27. Bb3 {[%emt 0:01:39]} Bxd5 {[%emt 0:01:55]} 28. Nxd5 {[%emt 0:01:14]} Nxd5 {[%emt 0:00:50]} 29. Bxd5 {[%emt 0:00:03]} f3 {[%emt 0:00:58]} 30. Rxf7 {[%emt 0:00:38]} 1-0

[Event "Bamberg-Open 2019"]
[Site "Bamberg"]
[Date "2019.05.31"]
[Round "4.6"]
[White "Kurayan, Ruslan"]
[Black "Lohvinov, Petro"]
[Result "1-0"]
[ECO "B43"]
[WhiteElo "2374"]
[BlackElo "2086"]
[Annotator "ChessBase"]
[PlyCount "63"]
[EventDate "2019.05.12"]
[EventType "swiss"]
[EventCountry "GER"]
[SourceTitle "playchess.com"]
[Source "ChessBase"]
[SourceQuality "1"]
[TimeControl "40/5400+30:900+30"]

1. e4 {[%emt 0:00:00]} c5 {[%emt 0:00:00]} 2. Nf3 {[%emt 0:00:00]} e6 {[%emt 0:00:00]} 3. d4 {[%emt 0:00:49]} cxd4 {[%emt 0:00:00]} 4. Nxd4 {[%emt 0:00:07]} a6 {[%emt 0:00:09]} 5. Nc3 {[%emt 0:00:10]} Qc7 {[%emt 0:00:04]} 6. Bd3 {[%emt 0:00:19]} Nc6 {[%emt 0:00:12]} 7. Nxc6 {[%emt 0:01:58]} bxc6 {[%emt 0:00:08]} 8. O-O {[%emt 0:03:15]} d5 {[%emt 0:00:08]} 9. f4 {[%emt 0:04:16]} Nf6 {[%emt 0:09:00]} 10. Qe2 {[%emt 0:07:35]} Be7 {[%emt 0:12:49]} 11. e5 {[%emt 0:15:44]} Nd7 {[%emt 0:01:37]} 12. Na4 {[%emt 0:00:07]} c5 {[%emt 0:25:20]} 13. c4 {[%emt 0:01:10]} d4 {[%emt 0:02:14]} 14. Bd2 {[%emt 0:01:32]} Bb7 {[%emt 0:03:09]} 15. b3 {[%emt 0:01:02]} h5 {[%emt 0:08:06]} 16. f5 {[%emt 0:17:28]} Qxe5 {[%emt 0:16:46]} 17. fxe6 {[%emt 0:00:52]} Qxe6 {[%emt 0:00:37]} 18. Rae1 {[%emt 0:05:31]} Qxe2 {[%emt 0:12:25]} 19. Rxe2 {[%emt 0:00:27]} Kf8 {[%emt 0:01:07]} 20. Bf5 {[%emt 0:01:25]} Nf6 {[%emt 0:02:09]} 21. Bf4 {[%emt 0:01:23]} g6 {[%emt 0:01:31]} 22. Bxg6 {[%emt 0:03:31]} fxg6 {[%emt 0:00:43]} 23. Bd6 {[%emt 0:00:10]} Bxd6 {[%emt 0:00:44]} 24. Rxf6+ {[%emt 0:00:06]} Kg7 {[%emt 0:00:25]} 25. Rxd6 {[%emt 0:00:09]} Bc8 {[%emt 0:02:23]} 26. Nxc5 {[%emt 0:00:11]} Bf5 {[%emt 0:00:11]} 27. Ne6+ {[%emt 0:00:08]} Bxe6 {[%emt 0:00:55]} 28. Rexe6 {[%emt 0:00:07]} Rhd8 {[%emt 0:00:25]} 29. Rxg6+ {[%emt 0:00:17]} Kf7 {[%emt 0:00:21]} 30. Kf2 {[%emt 0:00:17]} d3 {[%emt 0:00:39]} 31. Ke3 {[%emt 0:00:07]} Ke7 {[%emt 0:00:13]} 32. Rge6+ {[%emt 0:00:05]} 1-0

[Event "Bamberg-Open 2019"]
[Site "Bamberg"]
[Date "2019.05.31"]
[Round "4.7"]
[White "Weishaeutel, Moritz"]
[Black "Gegenfurtner, Juergen"]
[Result "1-0"]
[ECO "C28"]
[WhiteElo "2252"]
[BlackElo "2323"]
[Annotator "ChessBase"]
[PlyCount "75"]
[EventDate "2019.05.12"]
[EventType "swiss"]
[EventCountry "GER"]
[SourceTitle "playchess.com"]
[Source "ChessBase"]
[SourceQuality "1"]
[TimeControl "40/5400+30:900+30"]

1. e4 {[%emt 0:00:00]} e5 {[%emt 0:00:00]} 2. Bc4 {[%emt 0:00:01]} Nc6 {[%emt 0:00:22]} 3. Nc3 {[%emt 0:00:14]} Nf6 {[%emt 0:00:33]} 4. d3 {[%emt 0:00:17]} Bc5 {[%emt 0:00:17]} 5. f4 {[%emt 0:00:27]} d6 {[%emt 0:00:07]} 6. Nf3 {[%emt 0:00:07]} Bg4 {[%emt 0:00:11]} 7. Na4 {[%emt 0:00:23]} O-O {[%emt 0:00:32]} 8. Nxc5 {[%emt 0:00:13]} dxc5 {[%emt 0:00:05]} 9. O-O {[%emt 0:00:10]} Qd6 {[%emt 0:00:09]} 10. f5 {[%emt 0:00:11]} Nd4 {[%emt 0:05:55]} 11. c3 {[%emt 0:03:25]} Bxf3 {[%emt 0:04:32]} 12. gxf3 {[%emt 0:00:09]} b5 {[%emt 0:00:11]} 13. cxd4 {[%emt 0:00:49]} Qxd4+ {[%emt 0:00:32]} 14. Kh1 {[%emt 0:00:06]} bxc4 {[%emt 0:00:06]} 15. dxc4 {[%emt 0:00:06]} Rfd8 {[%emt 0:15:17]} 16. Qe2 {[%emt 0:06:45]} Rab8 {[%emt 0:01:40]} 17. Qg2 {[%emt 0:03:15]} Kf8 {[%emt 0:03:32]} 18. Rb1 {[%emt 0:06:49]} Qd3 {[%emt 0:22:31]} 19. Bg5 {[%emt 0:01:46]} h6 {[%emt 0:00:10]} 20. Bh4 {[%emt 0:07:09]} Rd6 {[%emt 0:04:43]} 21. Rg1 {[%emt 0:10:03]} g5 {[%emt 0:00:11]} 22. fxg6 {[%emt 0:02:23]} fxg6 {[%emt 0:00:06]} 23. f4 {[%emt 0:03:49]} Re8 {[%emt 0:09:00]} 24. Rbf1 {[%emt 0:07:00]} exf4 {[%emt 0:00:39]} 25. Rxf4 {[%emt 0:01:15]} Rxe4 {[%emt 0:13:58]} 26. Rxf6+ {[%emt 0:11:30]} Rxf6 {[%emt 0:00:15]} 27. Bxf6 {[%emt 0:00:03]} Re2 {[%emt 0:09:22]} 28. Qa8+ {[%emt 0:00:10]} Kf7 {[%emt 0:00:05]} 29. Bc3 {[%emt 0:00:20]} Qh3 {[%emt 0:00:54]} 30. Qd5+ {[%emt 0:01:31]} Ke8 {[%emt 0:00:22]} 31. Rg2 {[%emt 0:01:09]} Re6 {[%emt 0:01:09]} 32. Rf2 {[%emt 0:06:24]} Qe3 {[%emt 0:02:28]} 33. Qa8+ {[%emt 0:02:12]} Ke7 {[%emt 0:00:05]} 34. Qf8+ {[%emt 0:00:21]} Kd7 {[%emt 0:00:04]} 35. Rf7+ {[%emt 0:00:15]} Kc6 {[%emt 0:00:23]} 36. Qa8+ {[%emt 0:00:05]} Kb6 {[%emt 0:00:06]} 37. Qb8+ {[%emt 0:00:05]} Ka6 {[%emt 0:00:05]} 38. Qb5# 1-0

[Event "Bamberg-Open 2019"]
[Site "Bamberg"]
[Date "2019.05.31"]
[Round "4.8"]
[White "Berghof, Axel"]
[Black "Pribyl, Josef"]
[Result "1/2-1/2"]
[ECO "D86"]
[WhiteElo "2155"]
[BlackElo "2239"]
[Annotator "ChessBase"]
[PlyCount "39"]
[EventDate "2019.05.12"]
[EventType "swiss"]
[EventCountry "GER"]
[SourceTitle "playchess.com"]
[Source "ChessBase"]
[SourceQuality "1"]
[TimeControl "40/5400+30:900+30"]

1. d4 {[%emt 0:00:00]} Nf6 {[%emt 0:00:00]} 2. c4 {[%emt 0:00:00]} g6 {[%emt 0:00:00]} 3. Nc3 {[%emt 0:00:06]} d5 {[%emt 0:00:00]} 4. cxd5 {[%emt 0:04:13]} Nxd5 {[%emt 0:00:00]} 5. e4 {[%emt 0:00:18]} Nxc3 {[%emt 0:00:00]} 6. bxc3 {[%emt 0:00:06]} Bg7 {[%emt 0:00:00]} 7. Bc4 {[%emt 0:06:32]} c5 {[%emt 0:00:00]} 8. Ne2 {[%emt 0:00:50]} Nc6 {[%emt 0:00:00]} 9. Be3 {[%emt 0:00:59]} O-O {[%emt 0:00:00]} 10. O-O {[%emt 0:00:34]} Qc7 {[%emt 0:00:01]} 11. Qc1 {[%emt 0:07:58]} b6 {[%emt 0:04:25]} 12. Rb1 {[%emt 0:05:04]} e6 {[%emt 0:04:15]} 13. Bh6 {[%emt 0:11:42]} Bb7 {[%emt 0:09:37]} 14. Bxg7 {[%emt 0:03:19]} Kxg7 {[%emt 0:00:01]} 15. Ng3 {[%emt 0:05:42]} cxd4 {[%emt 0:09:50]} 16. Nh5+ {[%emt 0:08:39]} Kh8 {[%emt 0:11:18]} 17. Nf6 {[%emt 0:06:03]} Kg7 {[%emt 0:08:10]} 18. Nh5+ {[%emt 0:01:10]} Kh8 {[%emt 0:00:34]} 19. Nf6 {[%emt 0:00:07]} Kg7 {[%emt 0:10:13]} 20. Nh5+ {[%emt 0:00:19]} 1/2-1/2

[Event "Bamberg-Open 2019"]
[Site "Bamberg"]
[Date "2019.05.31"]
[Round "4.10"]
[White "Wehner, Janis"]
[Black "Promyshlyanskiy, Vitaliy"]
[Result "1-0"]
[ECO "C70"]
[WhiteElo "2128"]
[BlackElo "2282"]
[Annotator "ChessBase"]
[PlyCount "90"]
[EventDate "2019.05.12"]
[EventType "swiss"]
[EventCountry "GER"]
[SourceTitle "playchess.com"]
[Source "ChessBase"]
[SourceQuality "1"]
[TimeControl "40/5400+30:900+30"]

1. e4 {[%emt 0:00:00]} e5 {[%emt 0:00:00]} 2. Nf3 {[%emt 0:00:00]} Nc6 {[%emt 0:00:00]} 3. Bb5 {[%emt 0:00:00]} a6 {[%emt 0:00:05]} 4. Ba4 {[%emt 0:00:00]} Nge7 {[%emt 0:00:29]} 5. c3 {[%emt 0:00:06]} g6 {[%emt 0:00:21]} 6. O-O {[%emt 0:00:09]} Bg7 {[%emt 0:00:19]} 7. d4 {[%emt 0:00:05]} exd4 {[%emt 0:00:22]} 8. cxd4 {[%emt 0:00:02]} b5 {[%emt 0:00:26]} 9. Bb3 {[%emt 0:00:06]} d6 {[%emt 0:02:16]} 10. h3 {[%emt 0:00:05]} O-O {[%emt 0:00:18]} 11. Nc3 {[%emt 0:00:03]} Na5 {[%emt 0:00:39]} 12. Bc2 {[%emt 0:00:06]} Bb7 {[%emt 0:00:40]} 13. Be3 {[%emt 0:05:18]} Nc4 {[%emt 0:01:59]} 14. Bc1 {[%emt 0:02:02]} c5 {[%emt 0:03:46]} 15. b3 {[%emt 0:00:20]} Nb6 {[%emt 0:06:35]} 16. Bb2 {[%emt 0:01:26]} f5 {[%emt 0:14:57]} 17. dxc5 {[%emt 0:05:13]} dxc5 {[%emt 0:00:27]} 18. Ng5 {[%emt 0:01:14]} Bc8 {[%emt 0:10:06]} 19. Qxd8 {[%emt 0:05:18]} Rxd8 {[%emt 0:00:16]} 20. Rad1 {[%emt 0:00:03]} Bd7 {[%emt 0:17:18]} 21. exf5 {[%emt 0:12:03]} Bxf5 {[%emt 0:07:48]} 22. Bxf5 {[%emt 0:04:11]} Nxf5 {[%emt 0:00:14]} 23. Rxd8+ {[%emt 0:12:25]} Rxd8 {[%emt 0:00:11]} 24. Rd1 {[%emt 0:00:34]} Re8 {[%emt 0:05:51]} 25. g4 {[%emt 0:04:29]} Nd4 {[%emt 0:00:55]} 26. Kg2 {[%emt 0:00:18]} b4 {[%emt 0:02:22]} 27. Nce4 {[%emt 0:02:13]} h6 {[%emt 0:01:04]} 28. Nxc5 {[%emt 0:00:24]} Ne2 {[%emt 0:11:37]} 29. Bxg7 {[%emt 0:09:38]} Nf4+ {[%emt 0:00:31]} 30. Kg3 {[%emt 0:04:14]} Kxg7 {[%emt 0:01:06]} 31. Kxf4 {[%emt 0:01:46]} hxg5+ {[%emt 0:00:11]} 32. Kf3 {[%emt 0:00:28]} a5 {[%emt 0:00:46]} 33. Rd6 {[%emt 0:03:43]} Rb8 {[%emt 0:03:38]} 34. Nd3 {[%emt 0:05:23]} Rf8+ {[%emt 0:01:04]} 35. Ke4 {[%emt 0:03:18]} Rf6 {[%emt 0:01:34]} 36. Ke5 {[%emt 0:08:07]} Rf3 {[%emt 0:01:35]} 37. Kd4 {[%emt 0:00:34]} Nc8 {[%emt 0:00:24]} 38. Rxg6+ {[%emt 0:00:09]} Kxg6 {[%emt 0:00:41]} 39. Ne5+ {[%emt 0:00:06]} Kf6 {[%emt 0:00:09]} 40. Nxf3 {[%emt 0:00:05]} Nd6 {[%emt 0:00:04]} 41. Nd2 {[%emt 0:24:26]} Nb5+ {[%emt 0:15:14]} 42. Ke3 {[%emt 0:00:13]} Nc3 {[%emt 0:00:24]} 43. Ne4+ {[%emt 0:01:13]} Ke5 {[%emt 0:01:27]} 44. Nxc3 {[%emt 0:01:36]} bxc3 {[%emt 0:00:05]} 45. a3 {[%emt 0:00:11]} Kd5 {[%emt 0:02:17] Ke4+} 1-0

[Event "Bamberg-Open 2019"]
[Site "Bamberg"]
[Date "2019.05.31"]
[Round "4.11"]
[White "Spitzl, Vinzent"]
[Black "Schenk, Alexander"]
[Result "1-0"]
[ECO "A14"]
[WhiteElo "2263"]
[BlackElo "2096"]
[Annotator "ChessBase"]
[PlyCount "75"]
[EventDate "2019.05.12"]
[EventType "swiss"]
[EventCountry "GER"]
[SourceTitle "playchess.com"]
[Source "ChessBase"]
[SourceQuality "1"]
[TimeControl "40/5400+30:900+30"]

1. Nf3 {[%emt 0:00:00]} d5 {[%emt 0:00:00]} 2. g3 {[%emt 0:00:00]} Nf6 {[%emt 0:00:00]} 3. Bg2 {[%emt 0:00:03]} e6 {[%emt 0:00:09]} 4. c4 {[%emt 0:00:13]} Be7 {[%emt 0:00:31]} 5. O-O {[%emt 0:00:08]} O-O {[%emt 0:00:06]} 6. b3 {[%emt 0:00:14]} c5 {[%emt 0:00:35]} 7. cxd5 {[%emt 0:00:25]} exd5 {[%emt 0:00:39]} 8. d4 {[%emt 0:00:25]} Nc6 {[%emt 0:05:10]} 9. Bb2 {[%emt 0:00:08]} Be6 {[%emt 0:07:00]} 10. Nc3 {[%emt 0:04:01]} Rc8 {[%emt 0:03:15]} 11. dxc5 {[%emt 0:04:00]} Bxc5 {[%emt 0:00:33]} 12. Nb5 {[%emt 0:01:49]} Qe7 {[%emt 0:05:11]} 13. a3 {[%emt 0:01:39]} a6 {[%emt 0:01:09]} 14. Nbd4 {[%emt 0:00:17]} Bg4 {[%emt 0:02:52]} 15. Nxc6 {[%emt 0:08:05]} bxc6 {[%emt 0:04:10]} 16. b4 {[%emt 0:00:29]} Bb6 {[%emt 0:03:47]} 17. Qd3 {[%emt 0:02:10]} Ra8 {[%emt 0:13:25]} 18. Ne5 {[%emt 0:01:37]} Bd7 {[%emt 0:04:33]} 19. Rac1 {[%emt 0:06:11]} Rfc8 {[%emt 0:00:41]} 20. Nxd7 {[%emt 0:02:29]} Nxd7 {[%emt 0:01:35]} 21. e4 {[%emt 0:00:28]} dxe4 {[%emt 0:07:25]} 22. Bxe4 {[%emt 0:00:33]} Ne5 {[%emt 0:01:48]} 23. Bxh7+ {[%emt 0:00:58]} Kh8 {[%emt 0:00:10]} 24. Qf5 {[%emt 0:00:43]} Re8 {[%emt 0:06:12]} 25. Qh5 {[%emt 0:01:22]} Qg5 {[%emt 0:00:21]} 26. Qxg5 {[%emt 0:01:28]} Nf3+ {[%emt 0:00:05]} 27. Kg2 {[%emt 0:00:05]} Nxg5 {[%emt 0:00:04]} 28. Bf5 {[%emt 0:00:27]} Re2 {[%emt 0:01:48]} 29. Rxc6 {[%emt 0:01:00]} Rxb2 {[%emt 0:00:40]} 30. Rxb6 {[%emt 0:00:08]} Ra2 {[%emt 0:00:43]} 31. h4 {[%emt 0:00:52]} Nh7 {[%emt 0:00:30]} 32. Be4 {[%emt 0:00:14]} Rd8 {[%emt 0:05:07]} 33. Rxa6 {[%emt 0:00:16]} Nf6 {[%emt 0:00:10]} 34. Bf3 {[%emt 0:00:10]} Rdd2 {[%emt 0:00:15]} 35. b5 {[%emt 0:00:34]} Rdb2 {[%emt 0:00:16]} 36. b6 {[%emt 0:00:11]} Nd7 {[%emt 0:00:32]} 37. b7 {[%emt 0:00:07]} Kh7 {[%emt 0:00:14]} 38. Ra8 {[%emt 0:00:44]} 1-0